[Event "79th Tata Steel Chess 2017-Challengers"]
[Site "Wijk aan Zee"]
[Date "2017.01.15"]
[Round "2"]
[White "Hansen, Eric"]
[Black "Bok, Benjamin"]
[Result "1/2-1/2"]
[ECO "B94"]
[WhiteElo "2603"]
[BlackElo "2608"]
[Annotator "ChessBase"]
[PlyCount "51"]
[EventDate "2017.??.??"]
[EventType "tourn"]
[EventCountry "NED"]
[SourceTitle "playchess.com"]
[Source "ChessBase"]
[TimeControl "40/6000+30:20/3000+30:900+30"]

1. e4 {[%emt 0:00:00]} c5 {[%emt 0:00:06]} 2. Nf3 {[%emt 0:00:00]} d6 {[%emt 0:
00:05]} 3. d4 {[%emt 0:01:38]} cxd4 {[%emt 0:00:06]} 4. Nxd4 {[%emt 0:00:04]}
Nf6 {[%emt 0:00:07]} 5. Nc3 {[%emt 0:00:03]} a6 {[%emt 0:00:06]} 6. Bg5 {
[%emt 0:03:16]} Nbd7 {[%emt 0:00:48]} 7. Qe2 {[%emt 0:05:48]} h6 {[%emt 0:00:
10]} 8. Bxf6 {[%emt 0:01:41]} Nxf6 {[%emt 0:00:04]} 9. O-O-O {[%emt 0:00:10]}
e5 {[%emt 0:00:03]} 10. Nf5 {[%emt 0:01:20]} g6 {[%emt 0:00:19]} 11. Ne3 {
[%emt 0:00:06]} Be6 {[%emt 0:00:07]} 12. g3 {[%emt 0:06:14]} Rc8 {[%emt 0:01:
38]} 13. Rd3 {[%emt 0:00:21]} h5 {[%emt 0:00:08]} 14. Bg2 {[%emt 0:00:33]} Bh6
{[%emt 0:00:20]} 15. Kb1 {[%emt 0:00:20]} O-O {[%emt 0:00:42]} 16. Rhd1 {
[%emt 0:02:08]} Qa5 {[%emt 0:00:20]} 17. Ncd5 {[%emt 0:02:20]} Nxd5 {[%emt 0:
00:27]} 18. Nxd5 {[%emt 0:00:07]} Rc5 {[%emt 0:00:07]} 19. a3 {[%emt 0:28:51]}
Kg7 {[%emt 0:18:06]} 20. b4 {[%emt 0:18:39]} Qb5 {[%emt 0:00:17]} 21. a4 {
[%emt 0:00:09]} Qxa4 {[%emt 0:00:13]} 22. bxc5 {[%emt 0:00:04]} Qb5+ {[%emt 0:
05:01]} 23. Ka1 {[%emt 0:00:07]} Qa4+ {[%emt 0:02:01]} 24. Kb1 {[%emt 0:00:11]}
Qb5+ {[%emt 0:00:03]} 25. Ka1 {[%emt 0:00:34]} Qa4+ {[%emt 0:00:04]} 26. Kb1 {
[%emt 0:00:07]} 1/2-1/2

[Event "79th Tata Steel Chess 2017-Challengers"]
[Site "Wijk aan Zee"]
[Date "2017.01.15"]
[Round "2"]
[White "Jones, Gawain C B"]
[Black "Guramishvili, Sopiko"]
[Result "1-0"]
[ECO "B51"]
[WhiteElo "2665"]
[BlackElo "2370"]
[Annotator "ChessBase"]
[PlyCount "69"]
[EventDate "2017.??.??"]
[EventType "tourn"]
[EventCountry "NED"]
[SourceTitle "playchess.com"]
[Source "ChessBase"]
[TimeControl "40/6000+30:20/3000+30:900+30"]

1. e4 {[%emt 0:00:00]} c5 {[%emt 0:00:14]} 2. Nf3 {[%emt 0:00:00]} d6 {[%emt 0:
00:09]} 3. Bb5+ {[%emt 0:00:00]} Nd7 {[%emt 0:00:15]} 4. O-O {[%emt 0:00:18]}
a6 {[%emt 0:00:22]} 5. Bd3 {[%emt 0:00:15]} Ngf6 {[%emt 0:00:26]} 6. c3 {
[%emt 0:00:29]} b5 {[%emt 0:00:42]} 7. Bc2 {[%emt 0:00:07]} Bb7 {[%emt 0:00:07]
} 8. Qe2 {[%emt 0:00:06]} e6 {[%emt 0:14:04]} 9. d4 {[%emt 0:00:09]} Be7 {
[%emt 0:00:25]} 10. Re1 {[%emt 0:00:10]} d5 {[%emt 0:09:42]} 11. e5 {[%emt 0:
04:50]} Ne4 {[%emt 0:00:15]} 12. Nbd2 {[%emt 0:01:18]} Nxd2 {[%emt 0:00:27]}
13. Bxd2 {[%emt 0:00:57]} g5 {[%emt 0:08:36]} 14. dxc5 {[%emt 0:09:58]} Nxc5 {
[%emt 0:00:48]} 15. Be3 {[%emt 0:06:11]} Nd7 {[%emt 0:04:49]} 16. a4 {[%emt 0:
03:43]} bxa4 {[%emt 0:14:19]} 17. Bxa4 {[%emt 0:01:22]} h5 {[%emt 0:02:00]} 18.
Qd2 {[%emt 0:09:42]} Rg8 {[%emt 0:02:30]} 19. Qd3 {[%emt 0:12:14]} Rg7 {
[%emt 0:08:34]} 20. b4 {[%emt 0:00:45]} h4 {[%emt 0:04:31]} 21. Bc5 {[%emt 0:
06:52]} Rc8 {[%emt 0:07:14]} 22. Qe3 {[%emt 0:07:50]} Kf8 {[%emt 0:14:24]} 23.
Bxe7+ {[%emt 0:05:20]} Qxe7 {[%emt 0:00:30]} 24. Qa7 {[%emt 0:01:40]} Rc7 {
[%emt 0:00:27]} 25. Nd4 {[%emt 0:04:19]} Qd8 {[%emt 0:02:50]} 26. Bxd7 {
[%emt 0:03:38]} Qxd7 {[%emt 0:01:52]} 27. b5 {[%emt 0:02:16]} axb5 {[%emt 0:01:
40]} 28. Qb6 {[%emt 0:01:43]} Bc6 {[%emt 0:02:17]} 29. Ra6 {[%emt 0:01:09]} Bb7
{[%emt 0:03:14]} 30. Ra7 {[%emt 0:00:28]} Qc8 {[%emt 0:00:54]} 31. Nxb5 {
[%emt 0:00:43]} Rd7 {[%emt 0:00:10]} 32. Nd6 {[%emt 0:00:42]} Qxc3 {[%emt 0:00:
16]} 33. Ra8+ {[%emt 0:00:21]} Bxa8 {[%emt 0:00:18]} 34. Qb8+ {[%emt 0:00:06]}
Ke7 {[%emt 0:00:05]} 35. Qe8# 1-0

[Event "79th Tata Steel Chess 2017-Challengers"]
[Site "Wijk aan Zee"]
[Date "2017.01.15"]
[Round "2"]
[White "Lu, Shanglei"]
[Black "Smirin, Ilia"]
[Result "0-1"]
[ECO "B80"]
[WhiteElo "2612"]
[BlackElo "2667"]
[Annotator "ChessBase"]
[PlyCount "74"]
[EventDate "2017.??.??"]
[EventType "tourn"]
[EventCountry "NED"]
[SourceTitle "playchess.com"]
[Source "ChessBase"]
[TimeControl "40/6000+30:20/3000+30:900+30"]

1. e4 {[%emt 0:00:00]} c5 {[%emt 0:00:07]} 2. Nf3 {[%emt 0:00:02]} e6 {[%emt 0:
00:04]} 3. g3 {[%emt 0:01:25]} Nc6 {[%emt 0:01:05]} 4. Bg2 {[%emt 0:00:19]} Nf6
{[%emt 0:00:27]} 5. Nc3 {[%emt 0:00:12]} d6 {[%emt 0:00:26]} 6. O-O {[%emt 0:
04:55]} Be7 {[%emt 0:00:36]} 7. d4 {[%emt 0:01:02]} cxd4 {[%emt 0:00:07]} 8.
Nxd4 {[%emt 0:00:04]} Bd7 {[%emt 0:00:45]} 9. h3 {[%emt 0:01:05]} O-O {[%emt 0:
02:17]} 10. Nde2 {[%emt 0:03:27]} Rb8 {[%emt 0:09:32]} 11. g4 {[%emt 0:04:10]}
h6 {[%emt 0:01:41]} 12. Be3 {[%emt 0:10:44]} b5 {[%emt 0:00:37]} 13. Ng3 {
[%emt 0:01:25]} Qc7 {[%emt 0:09:16]} 14. f4 {[%emt 0:05:05]} Na5 {[%emt 0:01:
14]} 15. g5 {[%emt 0:07:30]} hxg5 {[%emt 0:01:09]} 16. fxg5 {[%emt 0:00:34]}
Nh7 {[%emt 0:00:06]} 17. h4 {[%emt 0:05:00]} Nc4 {[%emt 0:02:29]} 18. Bd4 {
[%emt 0:01:32]} d5 {[%emt 0:12:20]} 19. Nf5 {[%emt 0:27:56]} Bc5 {[%emt 0:02:
39]} 20. Kh1 {[%emt 0:00:45]} b4 {[%emt 0:16:11]} 21. Bxg7 {[%emt 0:19:22]}
bxc3 {[%emt 0:00:29]} 22. Bxc3 {[%emt 0:00:13]} exf5 {[%emt 0:02:11]} 23. g6 {
[%emt 0:00:09]} fxg6 {[%emt 0:06:09]} 24. Qxd5+ {[%emt 0:00:08]} Rf7 {[%emt 0:
00:06]} 25. exf5 {[%emt 0:00:15]} gxf5 {[%emt 0:10:30]} 26. Qxc4 {[%emt 0:07:
52]} Bb5 {[%emt 0:00:39]} 27. Qd5 {[%emt 0:00:13]} Bxf1 {[%emt 0:12:39]} 28.
Rxf1 {[%emt 0:00:05]} Rd8 {[%emt 0:07:52]} 29. Rxf5 {[%emt 0:01:56]} Bb6 {
[%emt 0:05:27]} 30. Qe6 {[%emt 0:03:49]} Rd1+ {[%emt 0:03:17]} 31. Bf1 {
[%emt 0:00:04]} Qe7 {[%emt 0:01:49]} 32. Qg6+ {[%emt 0:02:30]} Kf8 {[%emt 0:00:
01]} 33. Qh6+ {[%emt 0:02:10]} Ke8 {[%emt 0:00:26]} 34. Qc6+ {[%emt 0:00:24]}
Qd7 {[%emt 0:01:50]} 35. Qa8+ {[%emt 0:00:36]} Bd8 {[%emt 0:00:41]} 36. Qe4+ {
[%emt 0:00:30]} Re7 {[%emt 0:00:38]} 37. Qg2 {[%emt 0:00:31]} Qxf5 {[%emt 0:00:
18]} 0-1

[Event "79th Tata Steel Chess 2017-Challengers"]
[Site "Wijk aan Zee"]
[Date "2017.01.15"]
[Round "2"]
[White "Lei, Tingjie"]
[Black "Ragger, Markus"]
[Result "0-1"]
[ECO "A58"]
[WhiteElo "2467"]
[BlackElo "2697"]
[Annotator "ChessBase"]
[PlyCount "119"]
[EventDate "2017.??.??"]
[EventType "tourn"]
[EventCountry "NED"]
[SourceTitle "playchess.com"]
[Source "ChessBase"]
[TimeControl "40/6000+30:20/3000+30:900+30"]

1. d4 {[%emt 0:00:00]} Nf6 {[%emt 0:00:02]} 2. c4 {[%emt 0:00:00]} g6 {[%emt 0:
00:02]} 3. g3 {[%emt 0:00:00]} c5 {[%emt 0:00:19]} 4. d5 {[%emt 0:00:09]} b5 {
[%emt 0:01:06]} 5. cxb5 {[%emt 0:00:08]} a6 {[%emt 0:00:05]} 6. bxa6 {[%emt 0:
00:07]} d6 {[%emt 0:00:36]} 7. Nc3 {[%emt 0:00:17]} Bg7 {[%emt 0:00:17]} 8. Bg2
{[%emt 0:00:11]} Nbd7 {[%emt 0:01:00]} 9. Nf3 {[%emt 0:00:17]} Nb6 {[%emt 0:00:
57]} 10. O-O {[%emt 0:00:29]} O-O {[%emt 0:00:05]} 11. Nd2 {[%emt 0:00:15]}
Bxa6 {[%emt 0:04:27]} 12. Qc2 {[%emt 0:00:06]} Bb7 {[%emt 0:02:20]} 13. e4 {
[%emt 0:02:02]} Ba6 {[%emt 0:01:48]} 14. Rd1 {[%emt 0:01:48]} Ng4 {[%emt 0:00:
51]} 15. Nf3 {[%emt 0:20:24]} Nc4 {[%emt 0:09:50]} 16. h3 {[%emt 0:07:56]} Nge5
{[%emt 0:01:44]} 17. Nxe5 {[%emt 0:04:13]} Nxe5 {[%emt 0:01:11]} 18. b3 {
[%emt 0:07:44]} Qa5 {[%emt 0:27:36]} 19. Bd2 {[%emt 0:05:05]} Bd3 {[%emt 0:17:
28]} 20. Qc1 {[%emt 0:01:22]} Rfc8 {[%emt 0:00:44]} 21. f4 {[%emt 0:18:25]} Nd7
{[%emt 0:00:45]} 22. Na4 {[%emt 0:01:00]} Qa7 {[%emt 0:01:53]} 23. Be3 {
[%emt 0:00:03]} Qa6 {[%emt 0:06:23]} 24. Nb2 {[%emt 0:10:01]} c4 {[%emt 0:04:
03]} 25. bxc4 {[%emt 0:01:11]} Bxc4 {[%emt 0:01:48]} 26. Qd2 {[%emt 0:00:13]}
Bxa2 {[%emt 0:01:57]} 27. e5 {[%emt 0:18:42]} Qb5 {[%emt 0:12:05]} 28. Rdc1 {
[%emt 0:05:14]} Bb3 {[%emt 0:02:37]} 29. Rxa8 {[%emt 0:01:48]} Rxa8 {[%emt 0:
00:04]} 30. Nd1 {[%emt 0:00:43]} Rd8 {[%emt 0:04:07]} 31. exd6 {[%emt 0:01:51]}
exd6 {[%emt 0:00:07]} 32. Bd4 {[%emt 0:00:13]} Bxd4+ {[%emt 0:01:46]} 33. Qxd4
{[%emt 0:00:04]} Bxd1 {[%emt 0:00:05]} 34. Qxd1 {[%emt 0:01:43]} Nc5 {[%emt 0:
00:11]} 35. Rb1 {[%emt 0:00:51]} Qc4 {[%emt 0:00:48]} 36. Qd2 {[%emt 0:00:53]}
Ra8 {[%emt 0:02:49]} 37. Rc1 {[%emt 0:01:54]} Qb3 {[%emt 0:00:19]} 38. Rc3 {
[%emt 0:00:36]} Qb4 {[%emt 0:03:01]} 39. Rc2 {[%emt 0:00:53]} Ra1+ {[%emt 0:01:
19]} 40. Kh2 {[%emt 0:00:00]} Qb1 {[%emt 0:01:02]} 41. Qf2 {[%emt 0:04:12]} Qe1
{[%emt 0:07:29]} 42. Qxe1 {[%emt 0:09:02]} Rxe1 {[%emt 0:00:06]} 43. Bf3 {
[%emt 0:00:04]} Re3 {[%emt 0:02:44]} 44. Kg2 {[%emt 0:01:40]} Nd3 {[%emt 0:03:
03]} 45. Rc8+ {[%emt 0:01:54]} Kg7 {[%emt 0:01:05]} 46. Bd1 {[%emt 0:00:03]}
Nb4 {[%emt 0:04:29]} 47. Rc4 {[%emt 0:07:00]} Nxd5 {[%emt 0:02:55]} 48. Rd4 {
[%emt 0:01:03]} Ne7 {[%emt 0:01:17]} 49. g4 {[%emt 0:02:39]} d5 {[%emt 0:00:28]
} 50. Bf3 {[%emt 0:01:00]} Re6 {[%emt 0:00:05]} 51. Kf2 {[%emt 0:01:03]} Rc6 {
[%emt 0:01:35]} 52. Ke3 {[%emt 0:05:48]} Rc5 {[%emt 0:02:09]} 53. Kd2 {[%emt 0:
06:40]} Ra5 {[%emt 0:00:35]} 54. Ke3 {[%emt 0:00:44]} h6 {[%emt 0:01:58]} 55.
Rd3 {[%emt 0:04:47]} g5 {[%emt 0:01:57]} 56. f5 {[%emt 0:00:54]} Kf6 {[%emt 0:
00:51]} 57. Rb3 {[%emt 0:00:53]} Ra6 {[%emt 0:05:22]} 58. Rb7 {[%emt 0:03:50]}
h5 {[%emt 0:01:03]} 59. Ke2 {[%emt 0:03:54]} Rd6 {[%emt 0:03:58]} 60. Rc7 {
[%emt 0:00:00]} 0-1

[Event "79th Tata Steel Chess 2017-Challengers"]
[Site "Wijk aan Zee"]
[Date "2017.01.15"]
[Round "2"]
[White "Xiong, Jeffery"]
[Black "Van Foreest, Jorden"]
[Result "1-0"]
[ECO "E62"]
[WhiteElo "2667"]
[BlackElo "2612"]
[Annotator "ChessBase"]
[PlyCount "127"]
[EventDate "2017.??.??"]
[EventType "tourn"]
[EventCountry "NED"]
[SourceTitle "playchess.com"]
[Source "ChessBase"]
[TimeControl "40/6000+30:20/3000+30:900+30"]

1. d4 {[%emt 0:00:00]} d6 {[%emt 0:00:10]} 2. Nf3 {[%emt 0:00:59]} Nf6 {
[%emt 0:00:32]} 3. c4 {[%emt 0:00:32]} g6 {[%emt 0:00:08]} 4. g3 {[%emt 0:00:
49]} Bg7 {[%emt 0:00:05]} 5. Bg2 {[%emt 0:00:06]} O-O {[%emt 0:00:06]} 6. Nc3 {
[%emt 0:00:20]} Nc6 {[%emt 0:00:06]} 7. O-O {[%emt 0:00:13]} Bf5 {[%emt 0:00:
04]} 8. d5 {[%emt 0:00:51]} Na5 {[%emt 0:00:06]} 9. Nh4 {[%emt 0:00:31]} Bd7 {
[%emt 0:02:53]} 10. Qd3 {[%emt 0:00:19]} c5 {[%emt 0:01:36]} 11. Bd2 {[%emt 0:
07:39]} a6 {[%emt 0:03:10]} 12. b3 {[%emt 0:01:59]} b5 {[%emt 0:04:28]} 13.
Rab1 {[%emt 0:17:39]} Rb8 {[%emt 0:08:55]} 14. Ne4 {[%emt 0:03:11]} Nxe4 {
[%emt 0:10:12]} 15. Bxe4 {[%emt 0:00:56]} e5 {[%emt 0:00:07]} 16. dxe6 {
[%emt 0:02:24]} Bxe6 {[%emt 0:00:09]} 17. Bd5 {[%emt 0:03:09]} Bxd5 {[%emt 0:
01:39]} 18. Qxd5 {[%emt 0:00:04]} Qb6 {[%emt 0:05:20]} 19. Qd3 {[%emt 0:08:48]}
Nc6 {[%emt 0:02:47]} 20. Ng2 {[%emt 0:05:08]} a5 {[%emt 0:13:02]} 21. Bf4 {
[%emt 0:07:30]} Rfe8 {[%emt 0:09:29]} 22. Rfd1 {[%emt 0:08:40]} Nd4 {[%emt 0:
04:18]} 23. e3 {[%emt 0:06:03]} Nf3+ {[%emt 0:01:28]} 24. Kh1 {[%emt 0:00:10]}
Ne5 {[%emt 0:02:38]} 25. Bxe5 {[%emt 0:02:43]} Bxe5 {[%emt 0:00:28]} 26. Kg1 {
[%emt 0:07:24]} Qc6 {[%emt 0:01:02]} 27. Rbc1 {[%emt 0:05:48]} a4 {[%emt 0:01:
33]} 28. Rc2 {[%emt 0:05:57]} bxc4 {[%emt 0:02:40]} 29. bxc4 {[%emt 0:00:12]}
Rb4 {[%emt 0:01:40]} 30. Ne1 {[%emt 0:01:30]} Reb8 {[%emt 0:06:03]} 31. f4 {
[%emt 0:03:44]} Bg7 {[%emt 0:00:31]} 32. Qxd6 {[%emt 0:00:47]} Qxd6 {[%emt 0:
02:42]} 33. Rxd6 {[%emt 0:00:02]} a3 {[%emt 0:00:40]} 34. Kf1 {[%emt 0:02:06]}
Rb1 {[%emt 0:04:21]} 35. Ke2 {[%emt 0:01:05]} h5 {[%emt 0:05:53]} 36. Rd1 {
[%emt 0:00:49]} R1b2 {[%emt 0:01:35]} 37. Rd3 {[%emt 0:00:22]} Ra8 {[%emt 0:01:
33]} 38. Kd2 {[%emt 0:01:09]} Bf6 {[%emt 0:02:20]} 39. e4 {[%emt 0:01:51]} Rb1
{[%emt 0:02:52]} 40. Rc1 {[%emt 0:00:00]} Rbb8 {[%emt 0:03:34]} 41. Ke2 {
[%emt 0:24:09]} Bd4 {[%emt 0:09:13]} 42. Nf3 {[%emt 0:01:44]} Rb2+ {[%emt 0:06:
49]} 43. Rd2 {[%emt 0:00:08]} Bf6 {[%emt 0:00:10]} 44. Ne1 {[%emt 0:07:10]} Bd4
{[%emt 0:03:19]} 45. Nf3 {[%emt 0:00:42]} Bf6 {[%emt 0:00:10]} 46. Ne1 {
[%emt 0:00:07]} Bd4 {[%emt 0:00:04]} 47. e5 {[%emt 0:03:36]} Rb4 {[%emt 0:13:
42]} 48. Nf3 {[%emt 0:00:42]} Bb2 {[%emt 0:00:13]} 49. Rcc2 {[%emt 0:00:22]}
Raa4 {[%emt 0:00:06]} 50. Rd8+ {[%emt 0:01:01]} Kg7 {[%emt 0:00:02]} 51. Rd7 {
[%emt 0:05:38]} Kg8 {[%emt 0:01:16]} 52. Ng5 {[%emt 0:01:10]} Rxc4 {[%emt 0:06:
27]} 53. Rxc4 {[%emt 0:00:07]} Rxc4 {[%emt 0:00:03]} 54. Nxf7 {[%emt 0:00:19]}
Bd4 {[%emt 0:00:51]} 55. e6 {[%emt 0:03:02]} Bf6 {[%emt 0:04:35]} 56. Nh6+ {
[%emt 0:01:12]} Kh8 {[%emt 0:01:28]} 57. Nf7+ {[%emt 0:00:02]} Kg8 {[%emt 0:00:
02]} 58. Ne5 {[%emt 0:05:16]} Rc2+ {[%emt 0:01:22]} 59. Kf3 {[%emt 0:00:46]}
Rxa2 {[%emt 0:03:52]} 60. e7 {[%emt 0:00:00]} Bxe7 {[%emt 0:00:07]} 61. Rxe7 {
[%emt 0:00:07]} Rxh2 {[%emt 0:00:05]} 62. Ra7 {[%emt 0:00:26]} a2 {[%emt 0:00:
09]} 63. Nxg6 {[%emt 0:00:25]} c4 {[%emt 0:00:02]} 64. f5 {[%emt 0:00:16]} 1-0